[Event "Titled Tuesday Blitz February 14 Late 2023"]
[White "Guzman Moneo, Alberto"]
[Black "O`Gorman, Tom"]
[WhiteFideId "2209616"]
[BlackFideId "2508249"]
[WhiteElo "2170"]
[BlackElo "2355"]
[Result "1/2-1/2"]
[Round "03"]
[TimeControl "180+2"]
[Date "2023.02.14"]
[WhiteClock "0:00:28"]
[BlackClock "0:00:16"]

1. Nf3 {[%clk 0:03:00]}  c5 {[%clk 0:02:57]} 2. e4 {[%clk 0:03:00]}  d6 {[%clk 0:02:56]} 3. c3 {[%clk 0:03:00]}  Nf6 {[%clk 0:02:55]} 4. h3 {[%clk 0:03:00]}  Nc6 {[%clk 0:02:49]} 5. Bd3 {[%clk 0:02:59]}  d5 {[%clk 0:02:45]} 6. e5 {[%clk 0:02:55]}  Nd7 {[%clk 0:02:39]} 7. Qe2 {[%clk 0:02:54]}  Qc7 {[%clk 0:02:31]} 8. Bb5 {[%clk 0:02:48]}  a6 {[%clk 0:02:28]} 9. Bxc6 {[%clk 0:02:48]}  Qxc6 {[%clk 0:02:28]} 10. O-O {[%clk 0:02:46]}  e6 {[%clk 0:02:28]} 11. d4 {[%clk 0:02:46]}  Be7 {[%clk 0:02:25]} 12. Bg5 {[%clk 0:02:42]}  Bxg5 {[%clk 0:02:22]} 13. Nxg5 {[%clk 0:02:43]}  h6 {[%clk 0:02:21]} 14. Nf3 {[%clk 0:02:36]}  b5 {[%clk 0:02:20]} 15. Nbd2 {[%clk 0:02:30]}  O-O {[%clk 0:02:17]} 16. dxc5 {[%clk 0:02:24]}  Nxc5 {[%clk 0:02:15]} 17. Nb3 {[%clk 0:02:23]}  Na4 {[%clk 0:02:08]} 18. Nbd4 {[%clk 0:02:19]}  Qc7 {[%clk 0:02:06]} 19. Nh2 {[%clk 0:02:09]}  Rb8 {[%clk 0:01:59]} 20. a3 {[%clk 0:02:08]}  Bd7 {[%clk 0:01:55]} 21. Rad1 {[%clk 0:02:06]}  a5 {[%clk 0:01:52]} 22. Rd3 {[%clk 0:02:06]}  b4 {[%clk 0:01:49]} 23. axb4 {[%clk 0:02:06]}  axb4 {[%clk 0:01:50]} 24. Rg3 {[%clk 0:02:02]}  bxc3 {[%clk 0:01:40]} 25. bxc3 {[%clk 0:02:02]}  f5 {[%clk 0:01:07]} 26. exf6 {[%clk 0:01:58]}  Rxf6 {[%clk 0:01:06]} 27. Ng4 {[%clk 0:01:57]}  Rg6 {[%clk 0:01:02]} 28. Qc2 {[%clk 0:01:39]}  Rg5 {[%clk 0:00:56]} 29. h4 {[%clk 0:01:33]}  Rxg4 {[%clk 0:00:51]} 30. Rxg4 {[%clk 0:01:33]}  e5 {[%clk 0:00:51]} 31. Nf5 {[%clk 0:01:27]}  Bxf5 {[%clk 0:00:40]} 32. Qxf5 {[%clk 0:01:26]}  Nxc3 {[%clk 0:00:40]} 33. Re1 {[%clk 0:01:18]}  Ne4 {[%clk 0:00:30]} 34. f3 {[%clk 0:01:10]}  Qc3 {[%clk 0:00:29]} 35. Rexe4 {[%clk 0:00:54]}  dxe4 {[%clk 0:00:26]} 36. Rxe4 {[%clk 0:00:49]}  Re8 {[%clk 0:00:25]} 37. h5 {[%clk 0:00:45]}  Qc7 {[%clk 0:00:20]} 38. Kh2 {[%clk 0:00:43]}  Qe7 {[%clk 0:00:20]} 39. Rg4 {[%clk 0:00:42]}  Kh8 {[%clk 0:00:19]} 40. Qg6 {[%clk 0:00:41]}  Qf6 {[%clk 0:00:18]} 41. Qxf6 {[%clk 0:00:40]}  gxf6 {[%clk 0:00:19]} 42. Rg6 {[%clk 0:00:40]}  Kh7 {[%clk 0:00:18]} 43. Rxf6 {[%clk 0:00:40]}  e4 {[%clk 0:00:19]} 44. fxe4 {[%clk 0:00:37]}  Rxe4 {[%clk 0:00:20]} 45. Kh3 {[%clk 0:00:36]}  Re3+ {[%clk 0:00:19]} 46. g3 {[%clk 0:00:37]}  Re5 {[%clk 0:00:20]} 47. g4 {[%clk 0:00:36]}  Re1 {[%clk 0:00:20]} 48. Rf7+ {[%clk 0:00:35]}  Kg8 {[%clk 0:00:19]} 49. Ra7 {[%clk 0:00:36]}  Rh1+ {[%clk 0:00:19]} 50. Kg3 {[%clk 0:00:36]}  Rf1 {[%clk 0:00:18]} 51. Ra6 {[%clk 0:00:34]}  Kg7 {[%clk 0:00:18]} 52. Rg6+ {[%clk 0:00:34]}  Kh7 {[%clk 0:00:18]} 53. Kg2 {[%clk 0:00:35]}  Rf4 {[%clk 0:00:17]} 54. Kg1 {[%clk 0:00:34]}  Rf3 {[%clk 0:00:17]} 55. Kh2 {[%clk 0:00:33]}  Rf2+ {[%clk 0:00:17]} 56. Kg3 {[%clk 0:00:34]}  Rf1 {[%clk 0:00:18]} 57. Rb6 {[%clk 0:00:31]}  Kg7 {[%clk 0:00:16]} 58. Rb4 {[%clk 0:00:30]}  Kh7 {[%clk 0:00:16]} 59. Rf4 {[%clk 0:00:30]}  Rg1+ {[%clk 0:00:16]} 60. Kf3 {[%clk 0:00:30]}  Rf1+ {[%clk 0:00:16]} 61. Ke4 {[%clk 0:00:31]}  Ra1 {[%clk 0:00:16]} 62. Rf7+ {[%clk 0:00:30]}  Kg8 {[%clk 0:00:16]} 63. Rf6 {[%clk 0:00:29]}  Kh7 {[%clk 0:00:16]} 64. Kf4 {[%clk 0:00:28]}  Rf1+ {[%clk 0:00:15]} 65. Ke5 {[%clk 0:00:29]}  Re1+ {[%clk 0:00:15]} 66. Kf5 {[%clk 0:00:29]}  Rf1+ {[%clk 0:00:16]} 67. Ke6 {[%clk 0:00:29]}  Rg1 {[%clk 0:00:15]} 68. Rg6 {[%clk 0:00:29]}  Re1+ {[%clk 0:00:15]} 69. Kf7 {[%clk 0:00:28]}  Rf1+ {[%clk 0:00:15]} 70. Rf6 {[%clk 0:00:27]}  Rg1 {[%clk 0:00:15]} 71. Rg6 {[%clk 0:00:27]}  Rf1+ {[%clk 0:00:16]} 72. Ke6 {[%clk 0:00:27]}  Re1+ {[%clk 0:00:16]} 73. Kf5 {[%clk 0:00:27]}  Rf1+ {[%clk 0:00:16]} 74. Ke4 {[%clk 0:00:28]}  Re1+ {[%clk 0:00:17]} 75. Kf4 {[%clk 0:00:28]}  Rf1+ {[%clk 0:00:17]} 76. Kg3 {[%clk 0:00:28]}  Rg1+ {[%clk 0:00:15]} 77. Kh2 {[%clk 0:00:28]}  Rf1 {[%clk 0:00:16]} 78. Kg2 {[%clk 0:00:28]}  Rf4 {[%clk 0:00:16]} 79. Kg3 {[%clk 0:00:28]}  Rf1 {[%clk 0:00:16]} 1/2-1/2


[Site "https://www.chess.com"]

[Event "Titled Tuesday Blitz February 14 Late 2023"]
[White "Lucassen, Mickey"]
[Black "Smith, Garrett L"]
[WhiteFideId "12919110"]
[BlackFideId "2024829"]
[WhiteElo "2023"]
[BlackElo "2047"]
[Result "1-0"]
[Round "03"]
[TimeControl "180+2"]
[Date "2023.02.14"]
[WhiteClock "0:00:10"]
[BlackClock "0:00:12"]

1. d4 {[%clk 0:03:00]}  Nf6 {[%clk 0:02:59]} 2. Nc3 {[%clk 0:03:01]}  d5 {[%clk 0:02:59]} 3. Bf4 {[%clk 0:03:01]}  e6 {[%clk 0:02:58]} 4. Nb5 {[%clk 0:03:00]}  Na6 {[%clk 0:02:58]} 5. e3 {[%clk 0:02:49]}  Be7 {[%clk 0:02:51]} 6. a3 {[%clk 0:02:45]}  O-O {[%clk 0:02:50]} 7. Nf3 {[%clk 0:02:42]}  c6 {[%clk 0:02:42]} 8. Nc3 {[%clk 0:02:39]}  c5 {[%clk 0:02:40]} 9. Ne5 {[%clk 0:02:33]}  Nd7 {[%clk 0:02:30]} 10. Qh5 {[%clk 0:02:06]}  Nxe5 {[%clk 0:02:08]} 11. Bxe5 {[%clk 0:02:04]}  c4 {[%clk 0:02:04]} 12. Be2 {[%clk 0:01:48]}  Nc7 {[%clk 0:02:02]} 13. O-O {[%clk 0:01:45]}  a5 {[%clk 0:01:57]} 14. f4 {[%clk 0:01:34]}  g6 {[%clk 0:01:27]} 15. Qh6 {[%clk 0:01:31]}  f6 {[%clk 0:01:28]} 16. Bxc7 {[%clk 0:01:29]}  Qxc7 {[%clk 0:01:29]} 17. e4 {[%clk 0:01:24]}  dxe4 {[%clk 0:01:22]} 18. Nxe4 {[%clk 0:01:24]}  Bd7 {[%clk 0:01:21]} 19. c3 {[%clk 0:01:15]}  b5 {[%clk 0:01:20]} 20. Bf3 {[%clk 0:01:14]}  Bc6 {[%clk 0:01:20]} 21. Qh3 {[%clk 0:01:07]}  Bd5 {[%clk 0:01:16]} 22. Nd2 {[%clk 0:01:01]}  Ra6 {[%clk 0:01:12]} 23. Bxd5 {[%clk 0:01:00]}  exd5 {[%clk 0:01:13]} 24. Rae1 {[%clk 0:01:00]}  b4 {[%clk 0:01:05]} 25. axb4 {[%clk 0:01:00]}  axb4 {[%clk 0:01:05]} 26. Qf3 {[%clk 0:01:01]}  Rd8 {[%clk 0:00:56]} 27. Re2 {[%clk 0:00:50]}  bxc3 {[%clk 0:00:56]} 28. bxc3 {[%clk 0:00:51]}  Ra2 {[%clk 0:00:48]} 29. Rfe1 {[%clk 0:00:50]}  Bf8 {[%clk 0:00:47]} 30. f5 {[%clk 0:00:46]}  g5 {[%clk 0:00:46]} 31. Nf1 {[%clk 0:00:42]}  Rxe2 {[%clk 0:00:44]} 32. Rxe2 {[%clk 0:00:43]}  Qf7 {[%clk 0:00:42]} 33. Re6 {[%clk 0:00:39]}  Rd6 {[%clk 0:00:36]} 34. Re2 {[%clk 0:00:30]}  Kg7 {[%clk 0:00:35]} 35. Ng3 {[%clk 0:00:30]}  Qd7 {[%clk 0:00:32]} 36. Nh5+ {[%clk 0:00:29]}  Kf7 {[%clk 0:00:33]} 37. Qe3 {[%clk 0:00:22]}  Ra6 {[%clk 0:00:27]} 38. Qf3 {[%clk 0:00:20]}  Ra1+ {[%clk 0:00:23]} 39. Kf2 {[%clk 0:00:20]}  Ra6 {[%clk 0:00:24]} 40. Ng3 {[%clk 0:00:20]}  Ra5 {[%clk 0:00:22]} 41. h4 {[%clk 0:00:20]}  Bd6 {[%clk 0:00:21]} 42. hxg5 {[%clk 0:00:18]}  fxg5 {[%clk 0:00:19]} 43. Qh5+ {[%clk 0:00:18]}  Kf8 {[%clk 0:00:18]} 44. Qh6+ {[%clk 0:00:16]}  Kg8 {[%clk 0:00:18]} 45. Re6 {[%clk 0:00:14]}  Be7 {[%clk 0:00:16]} 46. Nh5 {[%clk 0:00:13]}  Ra2+ {[%clk 0:00:16]} 47. Kf3 {[%clk 0:00:12]}  Bf8 {[%clk 0:00:13]} 48. Nf6+ {[%clk 0:00:12]}  Kh8 {[%clk 0:00:12]} 49. Qxf8# {[%clk 0:00:10]} 1-0


[Site "https://www.chess.com"]

[Event "Titled Tuesday Blitz February 14 Late 2023"]
[White "Chor, Kevin"]
[Black "Djabri,Massinas"]
[WhiteFideId "2090740"]
[BlackFideId "7905726"]
[WhiteElo "1944"]
[BlackElo "2231"]
[Result "1-0"]
[Round "03"]
[TimeControl "180+2"]
[Date "2023.02.14"]
[WhiteClock "0:00:18"]
[BlackClock "0:00:02"]

1. e4 {[%clk 0:03:00]}  c5 {[%clk 0:03:00]} 2. Nf3 {[%clk 0:02:59]}  d6 {[%clk 0:03:00]} 3. d4 {[%clk 0:03:00]}  cxd4 {[%clk 0:03:01]} 4. Nxd4 {[%clk 0:03:00]}  Nf6 {[%clk 0:03:00]} 5. Nc3 {[%clk 0:03:01]}  a6 {[%clk 0:03:01]} 6. Be2 {[%clk 0:02:59]}  e5 {[%clk 0:03:01]} 7. Nb3 {[%clk 0:02:59]}  Be7 {[%clk 0:03:01]} 8. O-O {[%clk 0:02:58]}  O-O {[%clk 0:03:00]} 9. Be3 {[%clk 0:02:58]}  Be6 {[%clk 0:02:59]} 10. Nd5 {[%clk 0:02:58]}  Nbd7 {[%clk 0:02:43]} 11. Qd3 {[%clk 0:02:58]}  Bxd5 {[%clk 0:02:36]} 12. exd5 {[%clk 0:02:58]}  Rc8 {[%clk 0:02:31]} 13. c4 {[%clk 0:02:55]}  a5 {[%clk 0:02:24]} 14. Rac1 {[%clk 0:02:54]}  a4 {[%clk 0:02:24]} 15. Nd2 {[%clk 0:02:54]}  Nc5 {[%clk 0:02:23]} 16. Qc3 {[%clk 0:02:43]}  b5 {[%clk 0:02:09]} 17. b4 {[%clk 0:02:18]}  axb3 {[%clk 0:02:07]} 18. axb3 {[%clk 0:02:19]}  bxc4 {[%clk 0:01:54]} 19. Bxc4 {[%clk 0:02:18]}  Nfe4 {[%clk 0:01:42]} 20. Nxe4 {[%clk 0:02:13]}  Nxe4 {[%clk 0:01:43]} 21. Qd3 {[%clk 0:02:14]}  f5 {[%clk 0:01:43]} 22. f4 {[%clk 0:02:07]}  exf4 {[%clk 0:01:39]} 23. Bxf4 {[%clk 0:01:58]}  Bg5 {[%clk 0:01:35]} 24. Rce1 {[%clk 0:01:49]}  Qb6+ {[%clk 0:01:18]} 25. Be3 {[%clk 0:01:49]}  Bxe3+ {[%clk 0:01:14]} 26. Qxe3 {[%clk 0:01:47]}  Qxe3+ {[%clk 0:00:57]} 27. Rxe3 {[%clk 0:01:47]}  Nd2 {[%clk 0:00:52]} 28. Rf4 {[%clk 0:01:44]}  g5 {[%clk 0:00:44]} 29. Rd4 {[%clk 0:01:44]}  Ne4 {[%clk 0:00:38]} 30. g4 {[%clk 0:01:39]}  Nc5 {[%clk 0:00:37]} 31. b4 {[%clk 0:01:17]}  Nd7 {[%clk 0:00:35]} 32. Re6 {[%clk 0:01:16]}  Ne5 {[%clk 0:00:34]} 33. Be2 {[%clk 0:00:29]}  Rc2 {[%clk 0:00:31]} 34. Bd1 {[%clk 0:00:26]}  Rc1 {[%clk 0:00:31]} 35. Kg2 {[%clk 0:00:25]}  f4 {[%clk 0:00:24]} 36. Rxd6 {[%clk 0:00:24]}  f3+ {[%clk 0:00:22]} 37. Kf2 {[%clk 0:00:24]}  Rb1 {[%clk 0:00:14]} 38. Re6 {[%clk 0:00:18]}  Rb2+ {[%clk 0:00:13]} 39. Kf1 {[%clk 0:00:18]}  Ng6 {[%clk 0:00:10]} 40. Re3 {[%clk 0:00:18]}  Nh4 {[%clk 0:00:10]} 41. Rdd3 {[%clk 0:00:18]}  f2 {[%clk 0:00:09]} 42. d6 {[%clk 0:00:18]}  Rxb4 {[%clk 0:00:09]} 43. d7 {[%clk 0:00:18]}  Rbb8 {[%clk 0:00:09]} 44. Bb3+ {[%clk 0:00:18]}  Kg7 {[%clk 0:00:09]} 45. Re7+ {[%clk 0:00:17]}  Kf6 {[%clk 0:00:09]} 46. Rxh7 {[%clk 0:00:17]}  Ke5 {[%clk 0:00:08]} 47. Re7+ {[%clk 0:00:17]}  Kf4 {[%clk 0:00:08]} 48. Kxf2 {[%clk 0:00:16]}  Kxg4+ {[%clk 0:00:07]} 49. Ke2 {[%clk 0:00:16]}  Ng6 {[%clk 0:00:04]} 50. Be6+ {[%clk 0:00:15]}  Kf4 {[%clk 0:00:03]} 51. Rf7+ {[%clk 0:00:15]}  Rxf7 {[%clk 0:00:03]} 52. Bxf7 {[%clk 0:00:16]}  Ne5 {[%clk 0:00:02]} 53. d8=Q {[%clk 0:00:17]}  Rxd8 {[%clk 0:00:02]} 54. Rxd8 {[%clk 0:00:17]}  Nxf7 {[%clk 0:00:03]} 55. Rf8 {[%clk 0:00:18]}  Kg4 {[%clk 0:00:02]} 56. Rxf7 {[%clk 0:00:19]}  Kh3 {[%clk 0:00:02]} 57. Kf2 {[%clk 0:00:18]}  g4 {[%clk 0:00:02]} 58. Rh7# {[%clk 0:00:18]} 1-0


[Site "https://www.chess.com"]

[Event "Titled Tuesday Blitz February 14 Late 2023"]
[White "Zampronha, Wladimir Camilo"]
[Black "Perera Alfonso, Rene Humberto"]
[WhiteFideId "2103087"]
[BlackFideId "3514722"]
[WhiteElo "2176"]
[BlackElo "2320"]
[Result "1-0"]
[Round "03"]
[TimeControl "180+2"]
[Date "2023.02.14"]
[WhiteClock "0:01:03"]
[BlackClock "0:01:39"]

1. e4 {[%clk 0:03:00]}  c5 {[%clk 0:02:59]} 2. Nf3 {[%clk 0:03:01]}  d6 {[%clk 0:02:58]} 3. d4 {[%clk 0:03:01]}  cxd4 {[%clk 0:02:59]} 4. Nxd4 {[%clk 0:03:02]}  Nf6 {[%clk 0:02:59]} 5. Nc3 {[%clk 0:03:03]}  g6 {[%clk 0:02:59]} 6. Be3 {[%clk 0:03:02]}  a6 {[%clk 0:02:59]} 7. f3 {[%clk 0:03:01]}  e5 {[%clk 0:02:59]} 8. Nb3 {[%clk 0:02:59]}  h5 {[%clk 0:02:59]} 9. Qd2 {[%clk 0:02:54]}  Be6 {[%clk 0:02:58]} 10. O-O-O {[%clk 0:02:54]}  Nbd7 {[%clk 0:02:58]} 11. Kb1 {[%clk 0:02:48]}  Rc8 {[%clk 0:02:58]} 12. Nd5 {[%clk 0:02:41]}  Nxd5 {[%clk 0:02:56]} 13. exd5 {[%clk 0:02:42]}  Bf5 {[%clk 0:02:56]} 14. Bd3 {[%clk 0:02:41]}  Bxd3 {[%clk 0:02:55]} 15. Qxd3 {[%clk 0:02:42]}  Bg7 {[%clk 0:02:56]} 16. g4 {[%clk 0:02:33]}  h4 {[%clk 0:02:50]} 17. g5 {[%clk 0:02:32]}  b5 {[%clk 0:02:43]} 18. Nd2 {[%clk 0:02:31]}  O-O {[%clk 0:02:33]} 19. Ne4 {[%clk 0:02:31]}  Nb6 {[%clk 0:02:32]} 20. Bxb6 {[%clk 0:02:30]}  Qxb6 {[%clk 0:02:32]} 21. Nf6+ {[%clk 0:02:25]}  Bxf6 {[%clk 0:02:29]} 22. gxf6 {[%clk 0:02:26]}  Rc4 {[%clk 0:02:28]} 23. Rhg1 {[%clk 0:02:20]}  Rfc8 {[%clk 0:02:28]} 24. Rg2 {[%clk 0:02:14]}  Rf4 {[%clk 0:02:18]} 25. Rxg6+ {[%clk 0:02:08]}  Kf8 {[%clk 0:02:08]} 26. Rh6 {[%clk 0:02:07]}  Ke8 {[%clk 0:02:06]} 27. Rh8+ {[%clk 0:02:02]}  Kd7 {[%clk 0:02:05]} 28. Rxc8 {[%clk 0:01:58]}  Kxc8 {[%clk 0:02:06]} 29. Qh7 {[%clk 0:01:48]}  Rxf6 {[%clk 0:02:00]} 30. Qxh4 {[%clk 0:01:38]}  Rf4 {[%clk 0:01:59]} 31. Qe7 {[%clk 0:01:28]}  Qd8 {[%clk 0:01:56]} 32. Qa7 {[%clk 0:01:26]}  Qa5 {[%clk 0:01:44]} 33. Rg1 {[%clk 0:01:21]}  Qc7 {[%clk 0:01:41]} 34. Qxa6+ {[%clk 0:01:19]}  Qb7 {[%clk 0:01:39]} 35. Qxd6 {[%clk 0:01:03]} 1-0


[Site "https://www.chess.com"]

[Event "Titled Tuesday Blitz February 14 Late 2023"]
[White "Zochowski, Kacper"]
[Black "Sabar, Ethmane Daouda"]
[WhiteFideId "1125494"]
[BlackFideId "19600097"]
[WhiteElo "2262"]
[BlackElo "2040"]
[Result "1-0"]
[Round "03"]
[TimeControl "180+2"]
[Date "2023.02.14"]
[WhiteClock "0:00:25"]
[BlackClock "0:00:07"]

1. Nf3 {[%clk 0:03:00]}  d5 {[%clk 0:02:58]} 2. c4 {[%clk 0:03:01]}  c6 {[%clk 0:02:55]} 3. e3 {[%clk 0:03:01]}  e6 {[%clk 0:02:54]} 4. Nc3 {[%clk 0:03:01]}  f5 {[%clk 0:02:53]} 5. Be2 {[%clk 0:02:54]}  Nf6 {[%clk 0:02:53]} 6. O-O {[%clk 0:02:55]}  Bd6 {[%clk 0:02:53]} 7. b3 {[%clk 0:02:55]}  O-O {[%clk 0:02:52]} 8. Bb2 {[%clk 0:02:56]}  Bd7 {[%clk 0:02:46]} 9. Qc1 {[%clk 0:02:55]}  Be8 {[%clk 0:02:43]} 10. Ba3 {[%clk 0:02:55]}  Bh5 {[%clk 0:02:43]} 11. Bxd6 {[%clk 0:02:53]}  Qxd6 {[%clk 0:02:43]} 12. d4 {[%clk 0:02:53]}  Nbd7 {[%clk 0:02:37]} 13. c5 {[%clk 0:02:52]}  Qc7 {[%clk 0:02:33]} 14. b4 {[%clk 0:02:52]}  a6 {[%clk 0:02:33]} 15. a4 {[%clk 0:02:53]}  h6 {[%clk 0:02:28]} 16. b5 {[%clk 0:02:51]}  axb5 {[%clk 0:02:27]} 17. axb5 {[%clk 0:02:51]}  Rfb8 {[%clk 0:02:17]} 18. Ra3 {[%clk 0:02:31]}  Qd8 {[%clk 0:02:10]} 19. Rb3 {[%clk 0:02:25]}  Ra5 {[%clk 0:01:56]} 20. Ne5 {[%clk 0:01:37]}  Bxe2 {[%clk 0:01:46]} 21. Nxe2 {[%clk 0:01:38]}  Nxe5 {[%clk 0:01:45]} 22. dxe5 {[%clk 0:01:39]}  Nd7 {[%clk 0:01:41]} 23. f4 {[%clk 0:01:35]}  Rxb5 {[%clk 0:01:38]} 24. Rxb5 {[%clk 0:01:34]}  cxb5 {[%clk 0:01:39]} 25. Nd4 {[%clk 0:01:35]}  Qe7 {[%clk 0:01:26]} 26. c6 {[%clk 0:01:32]}  Nc5 {[%clk 0:01:18]} 27. Qa3 {[%clk 0:01:19]}  b6 {[%clk 0:01:03]} 28. Rb1 {[%clk 0:01:11]}  Rc8 {[%clk 0:00:52]} 29. Rxb5 {[%clk 0:01:09]}  Qc7 {[%clk 0:00:35]} 30. h3 {[%clk 0:00:55]}  Kf7 {[%clk 0:00:32]} 31. Kh2 {[%clk 0:00:55]}  g5 {[%clk 0:00:28]} 32. Rxc5 {[%clk 0:00:41]}  bxc5 {[%clk 0:00:26]} 33. Qxc5 {[%clk 0:00:42]}  gxf4 {[%clk 0:00:22]} 34. exf4 {[%clk 0:00:43]}  h5 {[%clk 0:00:17]} 35. Qd6 {[%clk 0:00:31]}  Qe7 {[%clk 0:00:13]} 36. Nb5 {[%clk 0:00:31]}  h4 {[%clk 0:00:10]} 37. c7 {[%clk 0:00:31]}  Ke8 {[%clk 0:00:08]} 38. Qc6+ {[%clk 0:00:25]}  Kf7 {[%clk 0:00:08]} 39. Nd6+ {[%clk 0:00:25]}  Kg6 {[%clk 0:00:07]} 40. Nxc8 {[%clk 0:00:25]} 1-0


[Site "https://www.chess.com"]

[Event "Titled Tuesday Blitz February 14 Late 2023"]
[White "Gurevich, Ilya"]
[Black "Karas, Marek"]
[WhiteFideId "2000628"]
[BlackFideId "14928558"]
[WhiteElo "2586"]
[BlackElo "2227"]
[Result "0-1"]
[Round "03"]
[TimeControl "180+2"]
[Date "2023.02.14"]
[WhiteClock "0:00:01"]
[BlackClock "0:00:30"]

1. d4 {[%clk 0:03:00]}  g6 {[%clk 0:02:59]} 2. c4 {[%clk 0:03:00]}  Bg7 {[%clk 0:02:58]} 3. e4 {[%clk 0:03:00]}  d6 {[%clk 0:02:58]} 4. Nc3 {[%clk 0:03:00]}  Nc6 {[%clk 0:02:57]} 5. d5 {[%clk 0:02:45]}  Nd4 {[%clk 0:02:56]} 6. Be3 {[%clk 0:02:46]}  c5 {[%clk 0:02:50]} 7. Bd3 {[%clk 0:02:46]}  Nf6 {[%clk 0:02:38]} 8. Nge2 {[%clk 0:02:46]}  Ng4 {[%clk 0:02:32]} 9. O-O {[%clk 0:02:29]}  Nxe3 {[%clk 0:02:27]} 10. fxe3 {[%clk 0:02:27]}  Nxe2+ {[%clk 0:02:27]} 11. Qxe2 {[%clk 0:02:28]}  O-O {[%clk 0:02:27]} 12. Qd2 {[%clk 0:02:05]}  Be5 {[%clk 0:02:19]} 13. Rab1 {[%clk 0:02:01]}  a5 {[%clk 0:02:11]} 14. a3 {[%clk 0:02:01]}  Kg7 {[%clk 0:02:07]} 15. Ne2 {[%clk 0:01:37]}  e6 {[%clk 0:01:57]} 16. Rf2 {[%clk 0:01:31]}  Qh4 {[%clk 0:01:54]} 17. g3 {[%clk 0:01:28]}  Qh3 {[%clk 0:01:52]} 18. Nf4 {[%clk 0:01:20]}  Qh6 {[%clk 0:01:51]} 19. Rbf1 {[%clk 0:01:15]}  g5 {[%clk 0:01:44]} 20. Ng2 {[%clk 0:00:58]}  Bd7 {[%clk 0:01:39]} 21. Ne1 {[%clk 0:00:46]}  Qh3 {[%clk 0:01:28]} 22. Nf3 {[%clk 0:00:40]}  f6 {[%clk 0:01:28]} 23. Nxe5 {[%clk 0:00:37]}  fxe5 {[%clk 0:01:28]} 24. Rxf8 {[%clk 0:00:35]}  Rxf8 {[%clk 0:01:29]} 25. Rxf8 {[%clk 0:00:35]}  Kxf8 {[%clk 0:01:30]} 26. Qxa5 {[%clk 0:00:35]}  Ke7 {[%clk 0:01:23]} 27. Qe1 {[%clk 0:00:25]}  Qg4 {[%clk 0:01:17]} 28. Qe2 {[%clk 0:00:24]}  Qxe2 {[%clk 0:01:12]} 29. Bxe2 {[%clk 0:00:25]}  h6 {[%clk 0:01:09]} 30. Bg4 {[%clk 0:00:25]}  Ba4 {[%clk 0:00:58]} 31. Bxe6 {[%clk 0:00:15]}  Bc2 {[%clk 0:00:57]} 32. b4 {[%clk 0:00:12]}  Bxe4 {[%clk 0:00:53]} 33. bxc5 {[%clk 0:00:12]}  dxc5 {[%clk 0:00:54]} 34. Bg8 {[%clk 0:00:09]}  Bd3 {[%clk 0:00:50]} 35. Kf2 {[%clk 0:00:09]}  Kd6 {[%clk 0:00:50]} 36. e4 {[%clk 0:00:07]}  Bxe4 {[%clk 0:00:47]} 37. Ke3 {[%clk 0:00:07]}  Bf5 {[%clk 0:00:47]} 38. Kd2 {[%clk 0:00:06]}  b6 {[%clk 0:00:46]} 39. Bf7 {[%clk 0:00:06]}  Bh3 {[%clk 0:00:42]} 40. Bg6 {[%clk 0:00:04]}  Bd7 {[%clk 0:00:38]} 41. Be4 {[%clk 0:00:03]}  b5 {[%clk 0:00:38]} 42. cxb5 {[%clk 0:00:02]}  Bxb5 {[%clk 0:00:39]} 43. Kc3 {[%clk 0:00:01]}  Kc7 {[%clk 0:00:36]} 44. Bf3 {[%clk 0:00:01]}  Bf1 {[%clk 0:00:34]} 45. Bd1 {[%clk 0:00:01]}  c4 {[%clk 0:00:31]} 46. Bf3 {[%clk 0:00:01]}  Kd6 {[%clk 0:00:30]} 47. a4 {[%clk 0:00:01]}  Kc5 {[%clk 0:00:30]} 48. a5 {[%clk 0:00:01]}  Bd3 {[%clk 0:00:29]} 49. a6 {[%clk 0:00:01]}  e4 {[%clk 0:00:30]} 0-1


[Site "https://www.chess.com"]

[Event "Titled Tuesday Blitz February 14 Late 2023"]
[White "Svane, Rasmus"]
[Black "Estrada Nieto, Julian"]
[WhiteFideId "4657101"]
[BlackFideId "5101018"]
[WhiteElo "2623"]
[BlackElo "2215"]
[Result "1-0"]
[Round "03"]
[TimeControl "180+2"]
[Date "2023.02.14"]
[WhiteClock "0:01:53"]
[BlackClock "0:00:36"]

1. Nf3 {[%clk 0:03:00]}  d5 {[%clk 0:02:59]} 2. g3 {[%clk 0:03:01]}  Nf6 {[%clk 0:02:59]} 3. Bg2 {[%clk 0:03:01]}  c6 {[%clk 0:02:59]} 4. O-O {[%clk 0:03:02]}  Bg4 {[%clk 0:02:59]} 5. h3 {[%clk 0:03:03]}  Bh5 {[%clk 0:02:59]} 6. d4 {[%clk 0:03:03]}  Nbd7 {[%clk 0:02:57]} 7. c4 {[%clk 0:03:03]}  e6 {[%clk 0:02:57]} 8. cxd5 {[%clk 0:03:03]}  exd5 {[%clk 0:02:57]} 9. Ne5 {[%clk 0:03:04]}  Bg6 {[%clk 0:02:49]} 10. Nc3 {[%clk 0:03:04]}  Bd6 {[%clk 0:02:48]} 11. f4 {[%clk 0:03:03]}  Be4 {[%clk 0:02:31]} 12. Nxe4 {[%clk 0:03:03]}  Nxe4 {[%clk 0:02:30]} 13. Bxe4 {[%clk 0:03:03]}  dxe4 {[%clk 0:02:31]} 14. Qb3 {[%clk 0:03:04]}  Bxe5 {[%clk 0:02:26]} 15. dxe5 {[%clk 0:03:01]}  Qb6+ {[%clk 0:02:19]} 16. Be3 {[%clk 0:03:00]}  Qxb3 {[%clk 0:02:18]} 17. axb3 {[%clk 0:03:01]}  a6 {[%clk 0:02:08]} 18. Ra4 {[%clk 0:02:59]}  f5 {[%clk 0:02:08]} 19. Rd1 {[%clk 0:02:55]}  O-O-O {[%clk 0:02:03]} 20. g4 {[%clk 0:02:47]}  g6 {[%clk 0:02:02]} 21. Kf2 {[%clk 0:02:47]}  Nf8 {[%clk 0:01:58]} 22. Rxd8+ {[%clk 0:02:40]}  Kxd8 {[%clk 0:01:58]} 23. Rd4+ {[%clk 0:02:41]}  Ke7 {[%clk 0:01:50]} 24. Rb4 {[%clk 0:02:41]}  b5 {[%clk 0:01:47]} 25. gxf5 {[%clk 0:02:41]}  gxf5 {[%clk 0:01:47]} 26. Bc5+ {[%clk 0:02:41]}  Kf7 {[%clk 0:01:37]} 27. Bxf8 {[%clk 0:02:42]}  Rxf8 {[%clk 0:01:37]} 28. Rd4 {[%clk 0:02:43]}  Ke7 {[%clk 0:01:27]} 29. Rd6 {[%clk 0:02:41]}  Rc8 {[%clk 0:01:25]} 30. Rf6 {[%clk 0:02:08]}  a5 {[%clk 0:01:03]} 31. Rxf5 {[%clk 0:02:08]}  c5 {[%clk 0:01:03]} 32. Rh5 {[%clk 0:02:08]}  Ke6 {[%clk 0:00:57]} 33. Rh6+ {[%clk 0:02:08]}  Ke7 {[%clk 0:00:48]} 34. f5 {[%clk 0:02:06]}  c4 {[%clk 0:00:48]} 35. Rxh7+ {[%clk 0:02:06]}  Kd8 {[%clk 0:00:47]} 36. bxc4 {[%clk 0:01:54]}  bxc4 {[%clk 0:00:36]} 37. f6 {[%clk 0:01:53]} 1-0


[Site "https://www.chess.com"]